fUSD/lending_fUSD_20241202
["ID","MTS","AMOUNT","RATE_DAILY","PERIOD"]
[343997979,1733173879036,-600.0,0.00021,2]
[343997980,1733173879045,-600.0,0.00021,2]
[343997981,1733173879056,-8458.66,0.00021197,2]
[343997982,1733173879067,-5005.45,0.0002137,2]
[343997983,1733173879077,-3441.8918663,0.000214,15]
[343997984,1733173879096,-365.324,0.000215,2]
[343997985,1733173879106,-4483.4585507,0.0002152,2]
[343997986,1733173879116,-7219.92221874,0.000217,2]
[343997987,1733173879126,-195.29,0.000217,31]
[343997988,1733173879136,-195.29,0.000217,31]
[343997989,1733173879145,-195.29,0.000217,31]
[343997990,1733173879155,-195.29,0.000217,31]
[343997991,1733173879165,-195.29,0.000217,31]
[343997992,1733173879175,-195.29,0.000217,31]
[343997993,1733173879185,-195.29,0.000217,31]
[343997994,1733173879195,-195.29,0.000217,31]
[343997995,1733173879206,-195.29,0.000217,31]
[343997996,1733173879216,-195.29,0.000217,31]
[343997997,1733173879225,-195.29,0.000217,31]
[343997998,1733173879235,-195.29,0.000217,31]
[343997999,1733173879244,-195.29,0.000217,31]
[343998000,1733173879254,-195.29,0.000217,31]
[343998001,1733173879264,-195.29,0.000217,31]
[343998002,1733173879273,-195.29,0.000217,31]
[343998003,1733173879283,-3912.0,0.000218,9]
[343998004,1733173879293,-600.0,0.000218,2]
[343998005,1733173879303,-1293.1,0.00021826,30]
[343998006,1733173879312,-577.35,0.00021918,2]
[343998007,1733173879322,-577.35,0.00021918,2]
[343998008,1733173879335,-577.35,0.00021918,2]
[343998009,1733173879344,-577.35,0.00021918,2]
[343998010,1733173879355,-577.35,0.00021918,2]
[343998011,1733173879364,-577.35,0.00021918,2]
[343998012,1733173879377,-577.35,0.00021918,2]
[343998013,1733173879387,-577.35,0.00021918,2]
[343998014,1733173879396,-577.35,0.00021918,2]
[343998015,1733173879406,-577.35,0.00021918,2]
[343998016,1733173879415,-577.35,0.00021918,2]
[343998017,1733173879425,-577.35,0.00021918,2]
[343998018,1733173879435,-577.35,0.00021918,2]
[343998019,1733173879445,-577.35,0.00021918,2]
[343998020,1733173879455,-577.35,0.00021918,2]
[343998021,1733173879465,-577.35,0.00021918,2]
[343998022,1733173879475,-577.35,0.00021918,2]
[343998023,1733173879485,-577.35,0.00021918,2]
[343998024,1733173879501,-577.35,0.00021918,2]
[343998025,1733173879514,-577.35,0.00021918,2]
[343998026,1733173879525,-151.0,0.00021918,2]
[343998027,1733173879536,-151.0,0.00021918,2]
[343998028,1733173879546,-151.0,0.00021918,2]
[343998029,1733173879557,-169.147467,0.00021918,2]
[343998030,1733173879567,-5989.3,0.00021918,2]
[343998031,1733173879578,-500.0,0.00021918,30]
[343998032,1733173879594,-500.0,0.00021918,30]
[343998033,1733173879605,-500.0,0.00021918,30]
[343998034,1733173879615,-500.0,0.00021918,30]
[343998035,1733173879626,-500.0,0.00021918,30]
[343998036,1733173879636,-500.0,0.00021918,30]
[343998037,1733173879646,-500.0,0.00021918,30]
[343998038,1733173879656,-500.0,0.00021918,30]
[343998039,1733173879666,-500.0,0.00021918,30]
[343998040,1733173879676,-600.75037241,0.00021918,30]
[343998041,1733173879687,-244.83530781,0.00022,2]
[343998042,1733173879697,-200.0,0.00022,2]
[343998043,1733173879709,-753.83720099,0.00022,7]
[343998044,1733173879720,-61325.29898655,0.00022,5]
[343998045,1733173879732,-24968.81651815,0.00022,2]
[343998046,1733173879742,-27777.28111226,0.00022,2]
[343998047,1733173879752,-1394.76333755,0.00022,2]
[343998048,1733173879763,-641.52153506,0.00022,2]
[343998049,1733173879773,-151.0,0.00022,7]
[343998050,1733173879782,-151.0,0.00022,7]
[343998051,1733173879792,-151.0,0.00022,7]
[343998052,1733173879802,-151.0,0.00022,7]
[343998053,1733173879812,-151.0,0.00022,7]
[343998054,1733173879822,-191.077957,0.00022,7]
[343998055,1733173879837,-7992.32109585,0.00022,15]
[343998056,1733173879849,-547.986,0.00022,7]
[343998057,1733173879859,-229.45885014,0.0002211,2]
[343998058,1733173879869,-643.8272,0.00022151,15]
[343998059,1733173879878,-400.0,0.00022221,2]
[343998060,1733173879887,-400.0,0.00022221,2]
[343998061,1733173879899,-400.0,0.00022221,2]
[343998062,1733173879909,-194230.20647539,0.00022222,3]
[343998063,1733173879919,-3912.0,0.000223,10]
[343998064,1733173879929,-500.0,0.00022329,2]
[343998065,1733173879941,-33862.7459362,0.000225,2]
[343998066,1733173879952,-2900.0,0.000225,15]
[343998067,1733173879961,-7261.13955175,0.00022585,2]
[343998068,1733173879971,-219.18,0.00022603,2]
[343998069,1733173879981,-600.0,0.0002268,8]
[343998070,1733173879991,-600.0,0.0002268,8]
[343998071,1733173880000,-600.0,0.0002268,8]
[343998072,1733173880010,-600.0,0.0002268,8]
[343998073,1733173880020,-600.0,0.0002268,8]
[343998074,1733173880029,-600.0,0.0002268,8]
[343998075,1733173880039,-3912.0,0.000228,10]
[343998076,1733173880048,-1028.89003941,0.00022944,2]
[343998077,1733173880058,-600.0,0.00022979,8]
[343998078,1733173880067,-600.0,0.00022979,8]
[343998079,1733173880077,-600.0,0.00022979,8]
[343998080,1733173880090,-600.0,0.00022979,8]
[343998081,1733173880101,-600.0,0.00022979,8]
[343998082,1733173880111,-600.0,0.00022979,8]
[343998083,1733173880120,-993.19132646,0.00023,2]
[343998084,1733173880131,-2741.50591843,0.00023,2]
[343998085,1733173880140,-1000.0,0.00023,4]
[343998086,1733173880149,-320.0,0.00023,10]
[343998087,1733173880159,-548.75,0.00023,3]
[343998088,1733173880168,-200.0,0.00023,2]
[343998089,1733173880179,-650.0,0.00023,2]
[343998090,1733173880189,-650.0,0.00023,2]
[343998091,1733173880198,-267.09115992,0.0002301,2]
[343998092,1733173880208,-49801.42396048,0.000232,2]
[343998093,1733173880218,-567.04225693,0.0002322,2]
[343998094,1733173880227,-3912.0,0.000233,11]
[343998095,1733173880237,-400.0,0.00023305,2]
[343998096,1733173880246,-400.0,0.00023305,2]
[343998097,1733173880255,-246734.0,0.00023306,2]
[343998098,1733173880265,-8458.66,0.0002336,2]
[343998099,1733173880274,-400.0,0.00023609,2]
[343998100,1733173880283,-400.0,0.00023609,2]
[343998101,1733173880293,-447151.4374948,0.0002361,7]
[343998102,1733173880302,-143723.67704942,0.0002361,7]
[343998103,1733173880312,-85967.76607841,0.0002361,7]
[343998104,1733173880321,-3912.0,0.000238,12]
[343998105,1733173880332,-400.0,0.00023921,2]
[343998106,1733173880342,-457.65941901,0.00023921,2]
[343998107,1733173880350,-249233.90615381,0.00023922,2]
[343998108,1733173880360,-86070.09384619,0.00023922,2]
[343998109,1733173880369,-150.661864,0.00023949,31]
[343998110,1733173880379,-974.44637266,0.00024,2]
[343998111,1733173880388,-7329.35101676,0.00024,10]
[343998112,1733173880398,-200.0,0.00024,2]
[343998113,1733173880407,-777.29159607,0.0002402,2]
[343998114,1733173880416,-3527.97138551,0.0002421,2]
[343998115,1733173880426,-402.60555123,0.0002421,2]
[343998116,1733173880435,-1708.0,0.0002425,2]
[343998117,1733173880444,-3912.0,0.000243,12]
[343998118,1733173880453,-857.917014,0.000244,2]
[343998119,1733173880462,-1293.1,0.0002441,30]
[343998120,1733173880472,-338.15103963,0.0002442,2]
[343998121,1733173880481,-16808.91744982,0.0002445,2]
[343998122,1733173880491,-151.0,0.00024499,2]
[343998123,1733173880500,-400.0,0.00024499,2]
[343998124,1733173880510,-367916.56286437,0.000245,4]
[343998125,1733173880520,-1091631.03660571,0.000245,4]
[343998126,1733173880529,-500.0,0.000245,5]
[343998127,1733173880539,-1708.0,0.000245,2]
[343998128,1733173880549,-150.661864,0.00024549,30]
[343998129,1733173880558,-1500.0,0.0002462,2]
[343998130,1733173880568,-4000.0,0.00024658,2]
[343998131,1733173880577,-1000.0,0.00024658,2]
[343998132,1733173880590,-8676.22,0.00024658,4]
[343998133,1733173880600,-1500.0,0.00024664,2]
[343998134,1733173880610,-195.29,0.000247,31]
[343998135,1733173880619,-195.29,0.000247,31]
[343998136,1733173880629,-195.29,0.000247,31]
[343998137,1733173880638,-195.29,0.000247,31]
[343998138,1733173880648,-195.29,0.000247,31]
[343998139,1733173880657,-195.29,0.000247,31]
[343998140,1733173880666,-195.29,0.000247,31]
[343998141,1733173880675,-195.29,0.000247,31]
[343998142,1733173880685,-195.29,0.000247,31]
[343998143,1733173880694,-195.29,0.000247,31]
[343998144,1733173880703,-195.29,0.000247,31]
[343998145,1733173880713,-195.29,0.000247,31]
[343998146,1733173880723,-195.29,0.000247,31]
[343998147,1733173880732,-195.29,0.000247,31]
[343998148,1733173880741,-195.29,0.000247,31]
[343998149,1733173880751,-195.29,0.000247,31]
[343998150,1733173880761,-195.29,0.000247,31]
[343998151,1733173880770,-195.29,0.000247,31]
[343998152,1733173880781,-195.29,0.000247,31]
[343998153,1733173880790,-195.29,0.000247,31]
[343998154,1733173880799,-195.29,0.000247,31]
[343998155,1733173880808,-195.29,0.000247,31]
[343998156,1733173880818,-195.29,0.000247,31]
[343998157,1733173880827,-195.29,0.000247,31]
[343998158,1733173880840,-1500.0,0.00024714,2]
[343998159,1733173880850,-1708.0,0.0002475,2]
[343998160,1733173880859,-3912.0,0.000248,13]
[343998161,1733173880872,-500.0,0.00024826,120]
[343998162,1733173880881,-2000.0,0.00024887,120]
[343998163,1733173880891,-1000.0,0.000249,20]
[343998164,1733173880900,-44792.15134703,0.000249,2]
[343998165,1733173880909,-224200.66,0.00024939,5]
[343998166,1733173880918,-5009.8616042,0.00024983,2]
[343998167,1733173880927,-11753.8597784,0.00024983,2]
[343998168,1733173880937,-263.569709,0.00024983,7]
[343998169,1733173880950,-263.569709,0.00024983,7]
[343998170,1733173880960,-151.0,0.00024983,7]
[343998171,1733173880970,-151.0,0.00024983,7]
[343998172,1733173880979,-380.160124,0.00024983,7]
[343998173,1733173880989,-380.160124,0.00024983,7]
[343998174,1733173880999,-1037.122995,0.00024983,7]
[343998175,1733173881008,-1037.122995,0.00024983,7]
[343998176,1733173881017,-451.508727,0.00024983,7]
[343998177,1733173881026,-451.508727,0.00024983,7]
[343998178,1733173881036,-300.0,0.00024999,10]
[343998179,1733173881045,-300.0,0.00024999,10]
[343998180,1733173881054,-300.0,0.00024999,10]
[343998181,1733173881064,-300.0,0.00024999,10]
[343998182,1733173881073,-400.0,0.00024999,2]
[343998183,1733173881086,-300.0,0.00024999,10]
[343998184,1733173881096,-300.0,0.00024999,10]
[343998185,1733173881106,-300.0,0.00024999,10]
[343998186,1733173881115,-300.0,0.00024999,10]
[343998187,1733173881124,-300.0,0.00024999,10]
[343998188,1733173881133,-300.0,0.00024999,10]
[343998189,1733173881142,-151.0,0.00024999,7]
[343998190,1733173881151,-151.0,0.00024999,7]
[343998191,1733173881161,-247.96528593,0.00025,2]
[343998192,1733173881170,-100813.15421318,0.00025,2]
[343998193,1733173881179,-2905.76533687,0.00025,2]
[343998194,1733173881189,-19731.47231903,0.00025,2]
[343998195,1733173881198,-1589.68183591,0.00025,2]
[343998196,1733173881207,-254.12620612,0.00025,2]
[343998197,1733173881216,-10245.0,0.00025,2]
[343998198,1733173881225,-1999.999999,0.00025,2]
[343998199,1733173881235,-1197.84834443,0.00025,5]
[343998200,1733173881245,-3574.0,0.00025,7]
[343998201,1733173881254,-3025.0,0.00025,7]
[343998202,1733173881263,-102271.56746971,0.00025,2]
[343998203,1733173881272,-500.0,0.00025,3]
[343998204,1733173881282,-828.69703879,0.00025,2]
[343998205,1733173881291,-329.2414409,0.00025,2]
[343998206,1733173881300,-150.0,0.00025,2]
[343998207,1733173881309,-2009.34623197,0.00025,2]
[343998208,1733173881318,-20000.0,0.00025,2]
[343998209,1733173881328,-375128.45,0.00025,20]
[343998210,1733173881339,-1800.0,0.00025,8]
[343998211,1733173881349,-1011.3562142,0.00025,7]
[343998212,1733173881358,-150.0,0.00025,2]
[343998213,1733173881367,-11572.5016423,0.00025,2]
[343998214,1733173881376,-2489.33305216,0.00025,30]
[343998215,1733173881386,-6827.553405,0.00025,15]
[343998216,1733173881395,-2000.0,0.00025,30]
[343998217,1733173881404,-15009.69596419,0.00025,14]
[343998218,1733173881413,-500.0,0.00025,120]
[343998219,1733173881422,-192.52586972,0.00025,120]
[343998220,1733173881432,-500.0,0.00025,120]
[343998221,1733173881441,-500.0,0.00025,120]
[343998222,1733173881450,-500.0,0.00025,120]
[343998223,1733173881459,-500.0,0.00025,120]
[343998224,1733173881469,-500.0,0.00025,120]
[343998225,1733173881479,-500.0,0.00025,120]
[343998226,1733173881489,-500.0,0.00025,120]
[343998227,1733173881499,-500.0,0.00025,120]
[343998228,1733173881509,-500.0,0.00025,120]
[343998229,1733173881520,-381.51548969,0.00025,120]
[343998230,1733173881530,-500.0,0.00025,120]
[343998231,1733173881539,-500.0,0.00025,120]
[343998232,1733173881549,-500.0,0.00025,120]
[343998233,1733173881559,-500.0,0.00025,120]
[343998234,1733173881570,-383.44189767,0.00025,120]
[343998235,1733173881583,-500.0,0.00025,120]
[343998236,1733173881593,-500.0,0.00025,120]
[343998237,1733173881603,-500.0,0.00025,120]
[343998238,1733173881612,-500.0,0.00025,120]
[343998239,1733173881622,-500.0,0.00025,120]
[343998240,1733173881632,-500.0,0.00025,120]
[343998241,1733173881641,-500.0,0.00025,120]
[343998242,1733173881651,-500.0,0.00025,120]
[343998243,1733173881660,-500.0,0.00025,120]
[343998244,1733173881669,-500.0,0.00025,120]
[343998245,1733173881679,-500.0,0.00025,120]
[343998246,1733173881689,-399.55989322,0.00025,120]
[343998247,1733173881699,-767.48,0.00025,120]
[343998248,1733173881708,-500.0,0.00025,120]
[343998249,1733173881717,-500.0,0.00025,120]
[343998250,1733173881727,-500.0,0.00025,120]
[343998251,1733173881736,-500.0,0.00025,120]
[343998252,1733173881745,-500.0,0.00025,120]
[343998253,1733173881755,-621.58,0.00025,120]
[343998254,1733173881764,-500.0,0.00025,120]
[343998255,1733173881773,-500.0,0.00025,120]
[343998256,1733173881782,-500.0,0.00025,120]
[343998257,1733173881792,-500.0,0.00025,120]
[343998258,1733173881801,-1653.09,0.00025,120]
[343998259,1733173881810,-500.0,0.00025,120]
[343998260,1733173881819,-500.0,0.00025,120]
[343998261,1733173881829,-1352.46,0.00025,120]
[343998262,1733173881840,-500.0,0.00025,120]
[343998263,1733173881854,-603.3,0.00025,120]
[343998264,1733173881863,-177.75670442,0.00025,120]
[343998265,1733173881873,-500.0,0.00025,120]
[343998266,1733173881882,-500.0,0.00025,120]
[343998267,1733173881892,-538.20071993,0.00025,120]
[343998268,1733173881901,-500.0,0.00025,120]
[343998269,1733173881910,-331.63581897,0.00025,2]
[343998270,1733173881919,-1108.07,0.00025,120]
[343998271,1733173881930,-1391.751336,0.00025,120]
[343998272,1733173881940,-500.0,0.00025,120]
[343998273,1733173881949,-561.01,0.00025,120]
[343998274,1733173881958,-500.0,0.00025,120]
[343998275,1733173881967,-500.0,0.00025,120]
[343998276,1733173881976,-548.32,0.00025,120]
[343998277,1733173881985,-500.0,0.00025,120]
[343998278,1733173881995,-500.0,0.00025,120]
[343998279,1733173882004,-647.45,0.00025,120]
[343998280,1733173882013,-500.0,0.00025,120]
[343998281,1733173882023,-500.0,0.00025,120]
[343998282,1733173882032,-500.0,0.00025,120]
[343998283,1733173882042,-500.0,0.00025,120]
[343998284,1733173882051,-693.61,0.00025,120]
[343998285,1733173882060,-500.0,0.00025,120]
[343998286,1733173882070,-500.0,0.00025,120]
[343998287,1733173882082,-500.0,0.00025,120]
[343998288,1733173882092,-500.0,0.00025,120]
[343998289,1733173882101,-500.0,0.00025,120]
[343998290,1733173882111,-500.0,0.00025,120]
[343998291,1733173882121,-500.0,0.00025,120]
[343998292,1733173882130,-1016.96,0.00025,120]
[343998293,1733173882140,-500.0,0.00025,120]
[343998294,1733173882149,-500.0,0.00025,120]
[343998295,1733173882159,-539.07,0.00025,120]
[343998296,1733173882169,-426.95877701,0.00025,120]
[343998297,1733173882178,-500.0,0.00025,120]
[343998298,1733173882187,-500.0,0.00025,120]
[343998299,1733173882196,-500.0,0.00025,120]
[343998300,1733173882205,-500.0,0.00025,120]
[343998301,1733173882215,-1438.91,0.00025,120]
[343998302,1733173882224,-500.0,0.00025,120]
[343998303,1733173882233,-500.0,0.00025,120]
[343998304,1733173882242,-500.0,0.00025,120]
[343998305,1733173882251,-500.0,0.00025,120]
[343998306,1733173882260,-500.0,0.00025,120]
[343998307,1733173882270,-948.94,0.00025,120]
[343998308,1733173882280,-500.0,0.00025,120]
[343998309,1733173882289,-906.05,0.00025,120]
[343998310,1733173882299,-515.16436423,0.00025,120]
[343998311,1733173882309,-500.0,0.00025,120]
[343998312,1733173882319,-1074.13,0.00025,120]
[343998313,1733173882328,-500.0,0.00025,120]
[343998314,1733173882342,-500.0,0.00025,120]
[343998315,1733173882351,-500.0,0.00025,120]
[343998316,1733173882361,-1279.4,0.00025,120]
[343998317,1733173882371,-1576.03,0.00025,120]
[343998318,1733173882380,-518.38,0.00025,120]
[343998319,1733173882390,-614.12,0.00025,120]
[343998320,1733173882400,-500.0,0.00025,120]
[343998321,1733173882409,-849.7,0.00025,120]
[343998322,1733173882419,-500.0,0.00025,120]
[343998323,1733173882429,-500.0,0.00025,120]
[343998324,1733173882438,-1011.43,0.00025,120]
[343998325,1733173882448,-1497.62,0.00025,120]
[343998326,1733173882457,-500.0,0.00025,120]
[343998327,1733173882466,-500.0,0.00025,120]
[343998328,1733173882476,-500.0,0.00025,120]
[343998329,1733173882485,-593.64,0.00025,120]
[343998330,1733173882495,-500.0,0.00025,120]
[343998331,1733173882505,-1378.04,0.00025,120]
[343998332,1733173882513,-500.0,0.00025,120]
[343998333,1733173882523,-500.0,0.00025,120]
[343998334,1733173882532,-789.41,0.00025,120]
[343998335,1733173882541,-2655.75,0.00025,120]
[343998336,1733173882550,-1352.95,0.00025,120]
[343998337,1733173882559,-500.0,0.00025,120]
[343998338,1733173882569,-500.0,0.00025,120]
[343998339,1733173882578,-564.36,0.00025,120]
[343998340,1733173882591,-191.42832551,0.00025,120]
[343998341,1733173882602,-683.33,0.00025,120]
[343998342,1733173882612,-649.44,0.00025,120]
[343998343,1733173882621,-186.43621157,0.00025,120]
[343998344,1733173882631,-1064.04,0.00025,120]
[343998345,1733173882640,-500.0,0.00025,120]
[343998346,1733173882650,-500.0,0.00025,120]
[343998347,1733173882659,-500.0,0.00025,120]
[343998348,1733173882669,-500.0,0.00025,120]
[343998349,1733173882679,-909.32,0.00025,120]
[343998350,1733173882688,-500.0,0.00025,120]
[343998351,1733173882698,-748.32,0.00025,120]
[343998352,1733173882707,-500.0,0.00025,120]
[343998353,1733173882718,-500.0,0.00025,120]
[343998354,1733173882727,-500.0,0.00025,30]
[343998355,1733173882737,-500.0,0.00025,120]
[343998356,1733173882746,-500.0,0.00025,120]
[343998357,1733173882756,-500.0,0.00025,120]
[343998358,1733173882765,-635.71,0.00025,120]
[343998359,1733173883089,-512.1003286,0.00025,120]
[343998360,1733173883100,-1695.84,0.00025,120]
[343998361,1733173883111,-500.0,0.00025,120]
[343998362,1733173883121,-631.82,0.00025,120]
[343998363,1733173883131,-1108.62,0.00025,120]
[343998364,1733173883141,-669.53,0.00025,120]
[343998365,1733173883151,-500.0,0.00025,120]
[343998366,1733173883160,-638.71,0.00025,120]
[343998367,1733173883169,-500.0,0.00025,120]
[343998368,1733173883178,-500.0,0.00025,120]
[343998369,1733173883188,-500.0,0.00025,120]
[343998370,1733173883199,-1016.52,0.00025,120]
[343998371,1733173883208,-500.0,0.00025,120]
[343998372,1733173883219,-500.0,0.00025,120]
[343998373,1733173883229,-573.9,0.00025,120]
[343998374,1733173883239,-521.97,0.00025,120]
[343998375,1733173883248,-805.1,0.00025,120]
[343998376,1733173883257,-500.0,0.00025,120]
[343998377,1733173883266,-500.0,0.00025,120]
[343998378,1733173883276,-500.0,0.00025,120]
[343998379,1733173883286,-500.0,0.00025,120]
[343998380,1733173883295,-500.0,0.00025,7]
[343998381,1733173883304,-500.0,0.00025,120]
[343998382,1733173883313,-500.0,0.00025,120]
[343998383,1733173883323,-500.0,0.00025,120]
[343998384,1733173883333,-500.0,0.00025,120]
[343998385,1733173883344,-500.0,0.00025,30]
[343998386,1733173883352,-500.0,0.00025,120]
[343998387,1733173883362,-161.34385908,0.00025,120]
[343998388,1733173883371,-1894.81,0.00025,120]
[343998389,1733173883381,-1383.06,0.00025,120]
[343998390,1733173883391,-715.04,0.00025,120]
[343998391,1733173883401,-1268.97,0.00025,120]
[343998392,1733173883411,-500.0,0.00025,120]
[343998393,1733173883420,-688.75,0.00025,120]
[343998394,1733173883430,-500.0,0.00025,120]
[343998395,1733173883441,-585.74911533,0.00025,120]
[343998396,1733173883451,-500.0,0.00025,120]
[343998397,1733173883462,-500.0,0.00025,120]
[343998398,1733173883472,-500.0,0.00025,120]
[343998399,1733173883482,-584.97,0.00025,120]
[343998400,1733173883491,-250.18642762,0.00025,120]
[343998401,1733173883502,-500.0,0.00025,120]
[343998402,1733173883512,-1841.28,0.00025,120]
[343998403,1733173883522,-500.0,0.00025,120]
[343998404,1733173883532,-500.0,0.00025,120]
[343998405,1733173883542,-500.0,0.00025,120]
[343998406,1733173883552,-769.98,0.00025,120]
[343998407,1733173883561,-1438.5,0.00025,120]
[343998408,1733173883571,-500.0,0.00025,120]
[343998409,1733173883580,-1445.35,0.00025,30]
[343998410,1733173883594,-1921.98,0.00025,120]
[343998411,1733173883604,-916.37,0.00025,120]
[343998412,1733173883614,-500.0,0.00025,120]
[343998413,1733173883625,-500.0,0.00025,120]
[343998414,1733173883635,-500.0,0.00025,120]
[343998415,1733173883645,-500.0,0.00025,30]
[343998416,1733173883655,-500.0,0.00025,120]
[343998417,1733173883666,-500.0,0.00025,120]
[343998418,1733173883676,-1760.2,0.00025,120]
[343998419,1733173883687,-500.0,0.00025,120]
[343998420,1733173883697,-500.0,0.00025,120]
[343998421,1733173883707,-1215.2,0.00025,120]
[343998422,1733173883717,-500.0,0.00025,120]
[343998423,1733173883727,-500.0,0.00025,120]
[343998424,1733173883738,-500.0,0.00025,120]
[343998425,1733173883748,-500.0,0.00025,120]
[343998426,1733173883759,-500.0,0.00025,120]
[343998427,1733173883769,-500.0,0.00025,120]
[343998428,1733173883779,-766.6,0.00025,120]
[343998429,1733173883790,-1248.1,0.00025,120]
[343998430,1733173883800,-500.0,0.00025,120]
[343998431,1733173883811,-500.0,0.00025,120]
[343998432,1733173883821,-500.0,0.00025,120]
[343998433,1733173883831,-802.31,0.00025,120]
[343998434,1733173883844,-846.79,0.00025,120]
[343998435,1733173883859,-897.73,0.00025,120]
[343998436,1733173883869,-1118.72,0.00025,120]
[343998437,1733173883879,-517.4,0.00025,120]
[343998438,1733173883891,-997.33,0.00025,120]
[343998439,1733173883901,-500.0,0.00025,120]
[343998440,1733173883911,-500.0,0.00025,120]
[343998441,1733173883921,-503.61,0.00025,120]
[343998442,1733173883931,-598.49860254,0.00025,120]
[343998443,1733173883943,-500.0,0.00025,120]
[343998444,1733173883954,-500.0,0.00025,120]
[343998445,1733173883963,-521.12,0.00025,120]
[343998446,1733173883973,-752.16,0.00025,120]
[343998447,1733173883983,-500.0,0.00025,120]
[343998448,1733173883993,-500.0,0.00025,120]
[343998449,1733173884003,-1441.76,0.00025,120]
[343998450,1733173884014,-500.0,0.00025,120]
[343998451,1733173884025,-500.0,0.00025,120]
[343998452,1733173884036,-604.3,0.00025,120]
[343998453,1733173884046,-500.0,0.00025,120]
[343998454,1733173884056,-500.0,0.00025,120]
[343998455,1733173884066,-500.0,0.00025,120]
[343998456,1733173884075,-500.0,0.00025,120]
[343998457,1733173884087,-500.0,0.00025,120]
[343998458,1733173884097,-1158.69,0.00025,120]
[343998459,1733173884107,-830.84,0.00025,120]
[343998460,1733173884116,-500.0,0.00025,120]
[343998461,1733173884126,-500.0,0.00025,120]
[343998462,1733173884136,-787.02,0.00025,120]
[343998463,1733173884145,-500.0,0.00025,120]
[343998464,1733173884155,-500.0,0.00025,120]
[343998465,1733173884166,-678.15,0.00025,120]
[343998466,1733173884176,-500.0,0.00025,120]
[343998467,1733173884186,-500.0,0.00025,120]
[343998468,1733173884196,-500.0,0.00025,120]
[343998469,1733173884206,-579.57,0.00025,120]
[343998470,1733173884215,-500.0,0.00025,120]
[343998471,1733173884224,-693.81,0.00025,120]
[343998472,1733173884234,-500.0,0.00025,120]
[343998473,1733173884244,-767.25,0.00025,120]
[343998474,1733173884254,-610.86,0.00025,120]
[343998475,1733173884264,-500.0,0.00025,120]
[343998476,1733173884273,-500.0,0.00025,120]
[343998477,1733173884283,-500.0,0.00025,120]
[343998478,1733173884293,-500.0,0.00025,120]